[Event "*** Titled Tuesday Blitz"]
[Site "Chess.com"]
[Date "2019.09.03"]
[Round "2"]
[White "Orest_Vovk"]
[Black "yiy1156"]
[Result "1-0"]
[WhiteElo "2215"]
[BlackElo "2557"]
[TimeControl "180+2"]
[EndTime "15:22:07 PDT"]
[Termination "Orest_Vovk won by resignation"]

1. d4 {[%clk 0:03:01.9]} 1... Nf6 {[%clk 0:03:00.7]} 2. Bf4 {[%clk 0:03:03.4]}
2... d5 {[%clk 0:03:01.3]} 3. e3 {[%clk 0:03:04.7]} 3... c5 {[%clk 0:03:02.2]}
4. Nf3 {[%clk 0:03:06.2]} 4... Nc6 {[%clk 0:03:03.5]} 5. c3 {[%clk 0:03:07.3]}
5... Qb6 {[%clk 0:03:04.2]} 6. Qb3 {[%clk 0:03:07.7]} 6... c4 {[%clk 0:03:03.4]}
7. Qxb6 {[%clk 0:03:06.6]} 7... axb6 {[%clk 0:03:05.3]} 8. Na3 {[%clk
0:03:07.8]} 8... Ra5 {[%clk 0:02:55.6]} 9. Bc7 {[%clk 0:03:04.8]} 9... e6 {[%clk
0:02:31.3]} 10. Bxb6 {[%clk 0:03:04.6]} 10... Ra6 {[%clk 0:02:31.9]} 11. Bc5
{[%clk 0:03:05.2]} 11... Bxc5 {[%clk 0:02:32.6]} 12. dxc5 {[%clk 0:03:07.1]}
12... Ne4 {[%clk 0:02:33.3]} 13. Nb5 {[%clk 0:03:02.8]} 13... Ke7 {[%clk
0:02:26.9]} 14. Be2 {[%clk 0:02:48.7]} 14... Nxc5 {[%clk 0:02:26.5]} 15. O-O
{[%clk 0:02:37.2]} 15... Rb6 {[%clk 0:02:20]} 16. a4 {[%clk 0:02:37.5]} 16...
Nxa4 {[%clk 0:02:18.5]} 17. Rxa4 {[%clk 0:02:39.3]} 17... Rxb5 {[%clk
0:02:19.9]} 18. b4 {[%clk 0:02:41]} 18... Bd7 {[%clk 0:02:12.3]} 19. Nd4 {[%clk
0:02:33.8]} 19... Rb6 {[%clk 0:02:02.6]} 20. Nxc6+ {[%clk 0:02:31.6]} 20... Bxc6
{[%clk 0:02:03.1]} 21. Ra7 {[%clk 0:02:33]} 21... Ra6 {[%clk 0:01:52.5]} 22.
Rxa6 {[%clk 0:02:28.1]} 22... bxa6 {[%clk 0:01:54.4]} 23. e4 {[%clk 0:02:29.4]}
23... Ra8 {[%clk 0:01:54]} 24. exd5 {[%clk 0:02:30.2]} 24... exd5 {[%clk
0:01:52]} 25. Ra1 {[%clk 0:02:30.1]} 25... Kd6 {[%clk 0:01:52.8]} 26. f4 {[%clk
0:02:25.7]} 26... Bb5 {[%clk 0:01:42.9]} 27. Bf3 {[%clk 0:02:17.6]} 27... Re8
{[%clk 0:01:42]} 28. Rd1 {[%clk 0:02:14.4]} 28... Bc6 {[%clk 0:01:43.1]} 29. Kf2
{[%clk 0:02:07.9]} 29... Kc7 {[%clk 0:01:41.8]} 30. Bxd5 {[%clk 0:02:04]} 30...
Rd8 {[%clk 0:01:14.5]} 31. Bf3 {[%clk 0:02:04.4]} 31... Rxd1 {[%clk 0:01:07.7]}
32. Bxd1 {[%clk 0:02:05.3]} 32... Kb6 {[%clk 0:01:09.3]} 33. Be2 {[%clk
0:02:02.3]} 33... Bd5 {[%clk 0:01:09.2]} 34. g3 {[%clk 0:01:55.9]} 34... a5
{[%clk 0:01:05.9]} 35. bxa5+ {[%clk 0:01:56.4]} 35... Kxa5 {[%clk 0:01:07.2]}
36. Ke3 {[%clk 0:01:58.3]} 36... Kb5 {[%clk 0:01:02.4]} 37. Kd4 {[%clk
0:01:58.6]} 37... Be6 {[%clk 0:01:03.6]} 38. Bf3 {[%clk 0:01:52]} 38... f6
{[%clk 0:00:38.1]} 39. Bd5 {[%clk 0:01:49.4]} 39... Bxd5 {[%clk 0:00:30.9]} 40.
Kxd5 {[%clk 0:01:51.3]} 40... f5 {[%clk 0:00:32.4]} 41. h4 {[%clk 0:01:48.8]}
41... h5 {[%clk 0:00:33.2]} 42. Kd4 {[%clk 0:01:49.6]} 42... g6 {[%clk
0:00:20.5]} 43. Kd5 {[%clk 0:01:50.3]} 43... Kb6 {[%clk 0:00:21.9]} 44. Kxc4
{[%clk 0:01:51.3]} 44... Kc6 {[%clk 0:00:23.5]} 45. Kd4 {[%clk 0:01:52.6]} 45...
Kd6 {[%clk 0:00:25]} 46. c4 {[%clk 0:01:54]} 1-0

[Event "*** Titled Tuesday Blitz"]
[Site "Chess.com"]
[Date "2019.09.03"]
[Round "2"]
[White "tteshan"]
[Black "MasterKroket"]
[Result "0-1"]
[WhiteElo "2183"]
[BlackElo "2431"]
[TimeControl "180+2"]
[EndTime "15:22:08 PDT"]
[Termination "MasterKroket won by resignation"]

1. e4 {[%clk 0:03:01.9]} 1... c5 {[%clk 0:03:00.7]} 2. Nf3 {[%clk 0:03:01.9]}
2... e6 {[%clk 0:03:02.1]} 3. d4 {[%clk 0:03:02.5]} 3... cxd4 {[%clk 0:03:04]}
4. Nxd4 {[%clk 0:03:03.6]} 4... Nc6 {[%clk 0:03:05.5]} 5. Nc3 {[%clk 0:03:02.7]}
5... Qc7 {[%clk 0:03:06.6]} 6. Be3 {[%clk 0:02:47.4]} 6... a6 {[%clk 0:03:07.2]}
7. Nb3 {[%clk 0:02:45.5]} 7... Nf6 {[%clk 0:03:06.4]} 8. Bd3 {[%clk 0:02:44.4]}
8... b5 {[%clk 0:03:06.6]} 9. f4 {[%clk 0:02:42.7]} 9... b4 {[%clk 0:03:06.1]}
10. Na4 {[%clk 0:02:40.5]} 10... Rb8 {[%clk 0:03:03.7]} 11. O-O {[%clk
0:02:37.3]} 11... d6 {[%clk 0:02:57.2]} 12. Qe2 {[%clk 0:02:31.3]} 12... Be7
{[%clk 0:02:52.7]} 13. g4 {[%clk 0:02:23.9]} 13... O-O {[%clk 0:02:53.2]} 14. g5
{[%clk 0:02:24.9]} 14... Nd7 {[%clk 0:02:54.4]} 15. f5 {[%clk 0:02:18]} 15...
Bd8 {[%clk 0:02:31.5]} 16. fxe6 {[%clk 0:01:44.9]} 16... fxe6 {[%clk 0:02:31.3]}
17. Rxf8+ {[%clk 0:01:46.4]} 17... Nxf8 {[%clk 0:02:32.3]} 18. Rf1 {[%clk
0:01:46.2]} 18... Ne5 {[%clk 0:02:17.1]} 19. Qf2 {[%clk 0:01:33.9]} 19... Be7
{[%clk 0:02:18.3]} 20. Bd4 {[%clk 0:01:29.7]} 20... Nfg6 {[%clk 0:02:11.9]} 21.
h4 {[%clk 0:01:30.2]} 21... Bd7 {[%clk 0:02:06.9]} 22. h5 {[%clk 0:01:30.1]}
22... Rf8 {[%clk 0:02:07.8]} 23. Qg3 {[%clk 0:01:30.5]} 23... Rxf1+ {[%clk
0:02:08.3]} 24. Kxf1 {[%clk 0:01:25.7]} 24... Bxa4 {[%clk 0:02:02.4]} 25. hxg6
{[%clk 0:01:25.6]} 25... Nxg6 {[%clk 0:01:59.9]} 26. Nc5 {[%clk 0:01:03]} 26...
e5 {[%clk 0:01:42.5]} 27. Bc4+ {[%clk 0:00:29.1]} 27... Kh8 {[%clk 0:01:41.6]}
28. Qf3 {[%clk 0:00:23.3]} 28... dxc5 {[%clk 0:01:40.1]} 29. Qf7 {[%clk
0:00:22.7]} 29... Qd8 {[%clk 0:01:40.9]} 30. Be3 {[%clk 0:00:19.3]} 30... Bb5
{[%clk 0:01:38.5]} 31. Bxb5 {[%clk 0:00:17.3]} 31... axb5 {[%clk 0:01:40.4]} 32.
Ke2 {[%clk 0:00:17.7]} 32... Nf4+ {[%clk 0:01:37.4]} 33. Bxf4 {[%clk 0:00:15.3]}
33... exf4 {[%clk 0:01:39.3]} 34. g6 {[%clk 0:00:17]} 34... hxg6 {[%clk
0:01:38.3]} 35. Qxg6 {[%clk 0:00:17.5]} 35... Bf6 {[%clk 0:01:35.6]} 36. e5
{[%clk 0:00:16.5]} 36... f3+ {[%clk 0:01:26.2]} 37. Kxf3 {[%clk 0:00:16.6]}
37... Qd5+ {[%clk 0:01:27.2]} 38. Kg4 {[%clk 0:00:14.6]} 38... Qxe5 {[%clk
0:01:28]} 0-1

[Event "*** Titled Tuesday Blitz"]
[Site "Chess.com"]
[Date "2019.09.03"]
[Round "2"]
[White "icychess54"]
[Black "nOcHeaTiNgKiD"]
[Result "0-1"]
[WhiteElo "2222"]
[BlackElo "2464"]
[TimeControl "180+2"]
[EndTime "15:22:10 PDT"]
[Termination "nOcHeaTiNgKiD won by resignation"]

1. c4 {[%clk 0:03:01.9]} 1... b6 {[%clk 0:02:58]} 2. Nf3 {[%clk 0:03:02]} 2...
Bb7 {[%clk 0:02:58.9]} 3. e3 {[%clk 0:03:03.3]} 3... g6 {[%clk 0:02:58.7]} 4.
Nc3 {[%clk 0:03:03.1]} 4... Bg7 {[%clk 0:03:00.1]} 5. d4 {[%clk 0:03:04]} 5...
Nf6 {[%clk 0:03:01.2]} 6. Be2 {[%clk 0:03:05.2]} 6... O-O {[%clk 0:03:02.3]} 7.
O-O {[%clk 0:03:06.6]} 7... d5 {[%clk 0:03:03.8]} 8. b3 {[%clk 0:03:07.2]} 8...
e6 {[%clk 0:03:04.3]} 9. Bb2 {[%clk 0:03:08.1]} 9... Nbd7 {[%clk 0:03:04.4]} 10.
Rc1 {[%clk 0:03:06.6]} 10... a6 {[%clk 0:03:03.1]} 11. Qc2 {[%clk 0:02:51.8]}
11... Rc8 {[%clk 0:02:59.8]} 12. Rfd1 {[%clk 0:02:47]} 12... Qe7 {[%clk
0:02:58.7]} 13. cxd5 {[%clk 0:02:39]} 13... exd5 {[%clk 0:02:58.1]} 14. a4
{[%clk 0:02:34.1]} 14... Rfd8 {[%clk 0:02:55.8]} 15. Bd3 {[%clk 0:02:14.6]}
15... c6 {[%clk 0:02:24.6]} 16. a5 {[%clk 0:01:58.2]} 16... c5 {[%clk
0:02:17.3]} 17. axb6 {[%clk 0:01:53]} 17... c4 {[%clk 0:02:18]} 18. bxc4 {[%clk
0:01:49.5]} 18... dxc4 {[%clk 0:02:19.1]} 19. Be2 {[%clk 0:01:51]} 19... Nxb6
{[%clk 0:02:19.9]} 20. Na4 {[%clk 0:01:49.3]} 20... Be4 {[%clk 0:02:15.3]} 21.
Nxb6 {[%clk 0:01:34]} 21... Bxc2 {[%clk 0:02:15.4]} 22. Nxc8 {[%clk 0:01:34.3]}
22... Rxc8 {[%clk 0:02:16.6]} 23. Rxc2 {[%clk 0:01:35.4]} 23... Qb4 {[%clk
0:02:00.2]} 24. Rdc1 {[%clk 0:01:29.6]} 24... Ne4 {[%clk 0:01:57.4]} 25. Bc3
{[%clk 0:01:03.3]} 25... Qa4 {[%clk 0:01:49.9]} 26. Be1 {[%clk 0:01:01.3]} 26...
Nd6 {[%clk 0:01:39.8]} 27. Nd2 {[%clk 0:00:54.9]} 27... Bf8 {[%clk 0:01:14.8]}
28. Nxc4 {[%clk 0:00:54.7]} 28... Nxc4 {[%clk 0:01:15]} 29. Bxc4 {[%clk
0:00:56.6]} 29... Kg7 {[%clk 0:01:11.7]} 30. d5 {[%clk 0:00:27.5]} 30... Ba3
{[%clk 0:01:08.6]} 31. Bc3+ {[%clk 0:00:21.4]} 31... Kh6 {[%clk 0:01:06.9]} 32.
g4 {[%clk 0:00:10.9]} 32... Bxc1 {[%clk 0:01:04]} 0-1

[Event "*** Titled Tuesday Blitz"]
[Site "Chess.com"]
[Date "2019.09.03"]
[Round "2"]
[White "Kildepiotr"]
[Black "INLOVEWITHF"]
[Result "0-1"]
[WhiteElo "2448"]
[BlackElo "2275"]
[TimeControl "180+2"]
[EndTime "15:22:12 PDT"]
[Termination "INLOVEWITHF won by resignation"]

1. Nf3 {[%clk 0:03:01.9]} 1... Nf6 {[%clk 0:03:00.2]} 2. g3 {[%clk 0:03:03.1]}
2... g6 {[%clk 0:03:01.7]} 3. Bg2 {[%clk 0:03:04.6]} 3... Bg7 {[%clk 0:03:03.4]}
4. O-O {[%clk 0:03:06.1]} 4... O-O {[%clk 0:03:04.4]} 5. d4 {[%clk 0:03:07.4]}
5... d6 {[%clk 0:03:06.1]} 6. Nbd2 {[%clk 0:03:08.1]} 6... c5 {[%clk 0:03:03.1]}
7. dxc5 {[%clk 0:03:08.7]} 7... dxc5 {[%clk 0:03:03.7]} 8. e4 {[%clk 0:03:09.9]}
8... Nc6 {[%clk 0:03:05.1]} 9. c3 {[%clk 0:03:10.9]} 9... b6 {[%clk 0:03:04.6]}
10. Qe2 {[%clk 0:03:11.4]} 10... Bb7 {[%clk 0:03:04.9]} 11. Rd1 {[%clk
0:03:11.7]} 11... Qc7 {[%clk 0:03:06]} 12. Nf1 {[%clk 0:03:12.5]} 12... Nd7
{[%clk 0:03:06.1]} 13. Bf4 {[%clk 0:03:13.1]} 13... e5 {[%clk 0:03:07]} 14. Bg5
{[%clk 0:03:12]} 14... f6 {[%clk 0:03:03.7]} 15. Bh3 {[%clk 0:03:12.7]} 15...
Rad8 {[%clk 0:03:00]} 16. Bd2 {[%clk 0:03:03.8]} 16... Ndb8 {[%clk 0:02:54.9]}
17. Ne3 {[%clk 0:03:02.9]} 17... Ne7 {[%clk 0:02:56]} 18. Nc2 {[%clk 0:02:53.5]}
18... Qc6 {[%clk 0:02:52.6]} 19. Re1 {[%clk 0:02:52.7]} 19... Ba6 {[%clk
0:02:51.6]} 20. c4 {[%clk 0:02:46.7]} 20... b5 {[%clk 0:02:38.3]} 21. Na3 {[%clk
0:02:29.4]} 21... b4 {[%clk 0:02:31.9]} 22. Nb5 {[%clk 0:02:30.2]} 22... Qb6
{[%clk 0:02:12.8]} 23. a3 {[%clk 0:02:30.6]} 23... b3 {[%clk 0:01:54.3]} 24. Bc3
{[%clk 0:02:21.1]} 24... Bb7 {[%clk 0:01:51.4]} 25. a4 {[%clk 0:02:05.5]} 25...
a6 {[%clk 0:01:51]} 26. a5 {[%clk 0:02:06.7]} 26... Qc6 {[%clk 0:01:50.3]} 27.
Na3 {[%clk 0:02:03.6]} 27... f5 {[%clk 0:01:40.6]} 28. Nxe5 {[%clk 0:02:00]}
28... Qxe4 {[%clk 0:01:41.1]} 29. Qxe4 {[%clk 0:02:00.6]} 29... Bxe4 {[%clk
0:01:43]} 30. Bg2 {[%clk 0:01:55.6]} 30... Bxg2 {[%clk 0:01:00.1]} 31. Kxg2
{[%clk 0:01:56.2]} 31... Nec6 {[%clk 0:01:01.1]} 32. Nb1 {[%clk 0:01:48.4]}
32... Nxe5 {[%clk 0:00:57.6]} 33. Bxe5 {[%clk 0:01:49]} 33... Rfe8 {[%clk
0:00:59.2]} 34. f4 {[%clk 0:01:49.5]} 34... Nc6 {[%clk 0:01:00.6]} 35. Nc3
{[%clk 0:01:42.3]} 35... Rd2+ {[%clk 0:00:58.1]} 36. Kh3 {[%clk 0:01:42.4]}
36... Bxe5 {[%clk 0:00:58.6]} 37. fxe5 {[%clk 0:01:42.9]} 37... Rxe5 {[%clk
0:00:59.3]} 38. Na4 {[%clk 0:01:38.2]} 38... Rxe1 {[%clk 0:00:54.4]} 39. Rxe1
{[%clk 0:01:38.7]} 39... Nd4 {[%clk 0:00:55]} 40. Re3 {[%clk 0:01:29.7]} 40...
g5 {[%clk 0:00:49.6]} 41. Nxc5 {[%clk 0:01:30]} 41... g4+ {[%clk 0:00:47.9]} 42.
Kh4 {[%clk 0:01:30.7]} 42... Nf3+ {[%clk 0:00:40.2]} 0-1

[Event "*** Titled Tuesday Blitz"]
[Site "Chess.com"]
[Date "2019.09.03"]
[Round "2"]
[White "Iyael"]
[Black "fmshawnrl123"]
[Result "0-1"]
[WhiteElo "2044"]
[BlackElo "2673"]
[TimeControl "180+2"]
[EndTime "15:22:15 PDT"]
[Termination "fmshawnrl123 won by resignation"]

1. e4 {[%clk 0:03:01.9]} 1... c6 {[%clk 0:03:00.6]} 2. d4 {[%clk 0:03:01.9]}
2... d5 {[%clk 0:03:02]} 3. Nc3 {[%clk 0:03:03.4]} 3... dxe4 {[%clk 0:03:03.1]}
4. Nxe4 {[%clk 0:03:04.5]} 4... Nf6 {[%clk 0:03:04.7]} 5. Nxf6+ {[%clk 0:03:05]}
5... exf6 {[%clk 0:03:06.6]} 6. c3 {[%clk 0:03:06.1]} 6... Bd6 {[%clk
0:03:08.5]} 7. Bd3 {[%clk 0:03:07]} 7... O-O {[%clk 0:03:10.4]} 8. Qc2 {[%clk
0:03:04.9]} 8... Re8+ {[%clk 0:03:12.3]} 9. Ne2 {[%clk 0:03:05.6]} 9... h5
{[%clk 0:03:14.2]} 10. Be3 {[%clk 0:03:03]} 10... Nd7 {[%clk 0:03:12.5]} 11.
O-O-O {[%clk 0:03:03]} 11... Nf8 {[%clk 0:03:14.1]} 12. h3 {[%clk 0:03:01.9]}
12... h4 {[%clk 0:03:14]} 13. Rdg1 {[%clk 0:02:54.2]} 13... Be6 {[%clk 0:03:14]}
14. c4 {[%clk 0:02:53.8]} 14... b5 {[%clk 0:03:14.3]} 15. c5 {[%clk 0:02:45.7]}
15... Bc7 {[%clk 0:03:15]} 16. Kb1 {[%clk 0:02:46.9]} 16... Ng6 {[%clk
0:03:14.7]} 17. g3 {[%clk 0:02:46.4]} 17... hxg3 {[%clk 0:03:12.6]} 18. Nxg3
{[%clk 0:02:46]} 18... Bxg3 {[%clk 0:03:09.9]} 19. Rxg3 {[%clk 0:02:42.7]} 19...
Qd5 {[%clk 0:03:11.1]} 20. Rhg1 {[%clk 0:02:41.8]} 20... Qxa2+ {[%clk
0:03:11.7]} 21. Kc1 {[%clk 0:02:41.6]} 21... f5 {[%clk 0:02:33.8]} 22. Bxf5
{[%clk 0:02:38.6]} 22... Bxf5 {[%clk 0:02:35.7]} 23. Qxf5 {[%clk 0:02:39.3]}
23... Re6 {[%clk 0:02:33.5]} 24. h4 {[%clk 0:02:35.5]} 24... Qa1+ {[%clk
0:02:24.5]} 25. Kc2 {[%clk 0:02:33.9]} 25... Qa4+ {[%clk 0:02:25.5]} 26. Kb1
{[%clk 0:02:32.5]} 26... Rf6 {[%clk 0:02:22.5]} 27. Qe4 {[%clk 0:02:25.1]} 27...
Re6 {[%clk 0:02:21.7]} 28. Qd3 {[%clk 0:02:22.3]} 28... Kf8 {[%clk 0:01:53.2]}
29. h5 {[%clk 0:02:21.9]} 29... Ne7 {[%clk 0:01:49.1]} 30. Rxg7 {[%clk
0:02:21.9]} 30... Rd8 {[%clk 0:01:45.8]} 31. Qh7 {[%clk 0:02:20.7]} 31... Ke8
{[%clk 0:01:46.1]} 32. Rxf7 {[%clk 0:02:17.5]} 32... Qb3 {[%clk 0:01:44.1]} 33.
Rgg7 {[%clk 0:02:15.2]} 33... Qd1+ {[%clk 0:01:29.2]} 34. Bc1 {[%clk 0:02:12.1]}
34... Qe1 {[%clk 0:00:52.2]} 35. Qh8+ {[%clk 0:01:26.5]} 35... Kd7 {[%clk
0:00:51.5]} 36. Rf8 {[%clk 0:01:27.4]} 36... Qe4+ {[%clk 0:00:43.8]} 37. Ka1
{[%clk 0:01:24.4]} 37... Rxf8 {[%clk 0:00:44.9]} 38. Qxf8 {[%clk 0:01:24.1]}
38... Qxd4 {[%clk 0:00:26.2]} 39. Qb8 {[%clk 0:01:12.7]} 39... Qxg7 {[%clk
0:00:23]} 0-1

[Event "*** Titled Tuesday Blitz"]
[Site "Chess.com"]
[Date "2019.09.03"]
[Round "2"]
[White "Snegokhod"]
[Black "przemekpiotrowski"]
[Result "0-1"]
[WhiteElo "2558"]
[BlackElo "2356"]
[TimeControl "180+2"]
[EndTime "15:22:19 PDT"]
[Termination "przemekpiotrowski won by resignation"]

1. g3 {[%clk 0:03:01.9]} 1... g6 {[%clk 0:02:58.5]} 2. Bg2 {[%clk 0:03:03.4]}
2... Bg7 {[%clk 0:03:00.1]} 3. Nf3 {[%clk 0:03:04.9]} 3... c5 {[%clk 0:03:01.6]}
4. O-O {[%clk 0:03:05.9]} 4... Nc6 {[%clk 0:03:03.1]} 5. c3 {[%clk 0:03:07.3]}
5... Nf6 {[%clk 0:03:03.4]} 6. d4 {[%clk 0:03:08.5]} 6... cxd4 {[%clk
0:03:04.1]} 7. cxd4 {[%clk 0:03:10.4]} 7... d5 {[%clk 0:03:04.6]} 8. Nc3 {[%clk
0:03:12.3]} 8... Ne4 {[%clk 0:03:04.9]} 9. Bf4 {[%clk 0:03:12.4]} 9... O-O
{[%clk 0:03:03]} 10. Rc1 {[%clk 0:03:07.6]} 10... Bf5 {[%clk 0:03:03.5]} 11. Qb3
{[%clk 0:02:53.3]} 11... Nxc3 {[%clk 0:03:00.4]} 12. Qxc3 {[%clk 0:02:53]} 12...
Qb6 {[%clk 0:02:55.7]} 13. Rfd1 {[%clk 0:02:42.8]} 13... Rac8 {[%clk 0:02:49.4]}
14. Qd2 {[%clk 0:02:43.2]} 14... Be4 {[%clk 0:02:43.4]} 15. e3 {[%clk
0:02:40.9]} 15... Nb4 {[%clk 0:02:41.8]} 16. a3 {[%clk 0:02:32.1]} 16... Nd3
{[%clk 0:02:33.8]} 17. Rxc8 {[%clk 0:02:22.1]} 17... Rxc8 {[%clk 0:02:35.7]} 18.
b4 {[%clk 0:02:19.5]} 18... Qa6 {[%clk 0:02:16.6]} 19. Ra1 {[%clk 0:02:01.2]}
19... Nxf4 {[%clk 0:01:41.5]} 20. gxf4 {[%clk 0:01:58.3]} 20... Rc2 {[%clk
0:01:42.9]} 21. Qe1 {[%clk 0:01:53.8]} 21... Qd3 {[%clk 0:01:41.2]} 22. Ng5
{[%clk 0:01:33.3]} 22... Bxg2 {[%clk 0:01:28.3]} 23. Kxg2 {[%clk 0:01:34.2]}
23... Re2 {[%clk 0:01:29.8]} 24. Qc1 {[%clk 0:01:22.5]} 24... Rc2 {[%clk
0:01:12.1]} 25. Qf1 {[%clk 0:01:11.3]} 25... Qxe3 {[%clk 0:01:10]} 26. Nf3
{[%clk 0:00:52.1]} 26... Bxd4 {[%clk 0:00:59.6]} 27. Nxd4 {[%clk 0:00:28.7]}
27... Qxd4 {[%clk 0:01:01.5]} 28. Rd1 {[%clk 0:00:27.1]} 28... Qxf4 {[%clk
0:00:58]} 29. Qe1 {[%clk 0:00:27]} 29... Qg4+ {[%clk 0:00:51.2]} 30. Kh1 {[%clk
0:00:26.4]} 30... Qf3+ {[%clk 0:00:51.6]} 31. Kg1 {[%clk 0:00:27.2]} 31... Rc4
{[%clk 0:00:47.5]} 32. Rd2 {[%clk 0:00:21.1]} 32... Rg4+ {[%clk 0:00:47.1]} 33.
Kf1 {[%clk 0:00:22.3]} 33... Qh1+ {[%clk 0:00:48.3]} 34. Ke2 {[%clk 0:00:23.3]}
34... Re4+ {[%clk 0:00:49.8]} 0-1

[Event "*** Titled Tuesday Blitz"]
[Site "Chess.com"]
[Date "2019.09.03"]
[Round "2"]
[White "MarcoRiehle"]
[Black "aa175"]
[Result "1-0"]
[WhiteElo "2703"]
[BlackElo "2272"]
[TimeControl "180+2"]
[EndTime "15:22:32 PDT"]
[Termination "MarcoRiehle won by resignation"]

1. e4 {[%clk 0:03:01.9]} 1... d5 {[%clk 0:02:58.7]} 2. exd5 {[%clk 0:02:59.1]}
2... Qxd5 {[%clk 0:03:00.6]} 3. Nc3 {[%clk 0:03:00.2]} 3... Qd8 {[%clk
0:03:01.2]} 4. d4 {[%clk 0:02:53]} 4... Nf6 {[%clk 0:03:01.1]} 5. Bc4 {[%clk
0:02:52]} 5... a6 {[%clk 0:02:59.4]} 6. Nf3 {[%clk 0:02:49.7]} 6... b5 {[%clk
0:02:52.6]} 7. Bb3 {[%clk 0:02:48.2]} 7... c5 {[%clk 0:02:53.2]} 8. dxc5 {[%clk
0:02:39.7]} 8... Qxd1+ {[%clk 0:02:55.1]} 9. Nxd1 {[%clk 0:02:40.6]} 9... e6
{[%clk 0:02:52.5]} 10. O-O {[%clk 0:02:41.4]} 10... Bxc5 {[%clk 0:02:52.4]} 11.
Be3 {[%clk 0:02:41.8]} 11... Bxe3 {[%clk 0:02:52.2]} 12. Nxe3 {[%clk 0:02:43.7]}
12... Bb7 {[%clk 0:02:53]} 13. Rad1 {[%clk 0:02:40.7]} 13... Nbd7 {[%clk
0:02:36.6]} 14. a4 {[%clk 0:02:23.9]} 14... Ke7 {[%clk 0:02:05]} 15. Nd4 {[%clk
0:02:17.4]} 15... bxa4 {[%clk 0:01:42]} 16. Bxa4 {[%clk 0:02:17.3]} 16... Rhc8
{[%clk 0:01:41.8]} 17. b4 {[%clk 0:02:12.3]} 17... Nb6 {[%clk 0:01:35.9]} 18.
Bb3 {[%clk 0:02:12.6]} 18... Ne4 {[%clk 0:01:32.6]} 19. c4 {[%clk 0:02:05.7]}
19... a5 {[%clk 0:00:30.5]} 20. c5 {[%clk 0:01:28.5]} 20... Nd7 {[%clk
0:00:31.3]} 21. Rc1 {[%clk 0:01:29.7]} 21... Ba6 {[%clk 0:00:21.7]} 22. b5
{[%clk 0:01:28.4]} 22... Bxb5 {[%clk 0:00:14.8]} 23. Nxb5 {[%clk 0:01:28]} 23...
Ndxc5 {[%clk 0:00:14.2]} 24. Bc4 {[%clk 0:01:21.3]} 24... Nd2 {[%clk 0:00:14.2]}
25. Rfd1 {[%clk 0:01:21.1]} 25... Nxc4 {[%clk 0:00:14.5]} 26. Rxc4 {[%clk
0:01:23]} 26... Rab8 {[%clk 0:00:12.3]} 27. Nd6 {[%clk 0:01:19.7]} 27... Rc6
{[%clk 0:00:05.2]} 28. Ne4 {[%clk 0:01:17.1]} 28... Rbc8 {[%clk 0:00:03.3]} 29.
Rdc1 {[%clk 0:01:16.9]} 29... Nxe4 {[%clk 0:00:02.4]} 30. Rxc6 {[%clk
0:01:16.9]} 30... Rd8 {[%clk 0:00:03.4]} 31. Ra6 {[%clk 0:01:16.3]} 31... Nd2
{[%clk 0:00:02.7]} 32. Rxa5 {[%clk 0:01:15.3]} 32... Nb3 {[%clk 0:00:02.8]} 33.
Ra7+ {[%clk 0:01:16.6]} 33... Kf6 {[%clk 0:00:03]} 34. Rcc7 {[%clk 0:01:17]}
34... Kg6 {[%clk 0:00:02.7]} 35. h4 {[%clk 0:01:14.7]} 35... Nd4 {[%clk
0:00:03.1]} 36. Rxf7 {[%clk 0:01:14.5]} 36... Ne2+ {[%clk 0:00:03.1]} 37. Kh2
{[%clk 0:01:14.7]} 37... Rd2 {[%clk 0:00:03.3]} 38. Rxg7+ {[%clk 0:01:14.4]}
38... Kf6 {[%clk 0:00:05.2]} 39. Raf7+ {[%clk 0:01:13.8]} 39... Ke5 {[%clk
0:00:06.2]} 40. Nc4+ {[%clk 0:01:15.1]} 1-0

[Event "*** Titled Tuesday Blitz"]
[Site "Chess.com"]
[Date "2019.09.03"]
[Round "2"]
[White "MFBerna"]
[Black "FranciscodelaF"]
[Result "0-1"]
[WhiteElo "2480"]
[BlackElo "2277"]
[TimeControl "180+2"]
[EndTime "15:22:33 PDT"]
[Termination "FranciscodelaF won on time"]

1. e4 {[%clk 0:03:01.9]} 1... d5 {[%clk 0:03:00.8]} 2. exd5 {[%clk 0:03:02.3]}
2... Nf6 {[%clk 0:03:02.3]} 3. d4 {[%clk 0:03:02.8]} 3... Bg4 {[%clk 0:03:03]}
4. Qd3 {[%clk 0:02:56]} 4... Qxd5 {[%clk 0:03:01.6]} 5. Nc3 {[%clk 0:02:53.1]}
5... Qd7 {[%clk 0:03:02.3]} 6. Bf4 {[%clk 0:02:43.6]} 6... Nc6 {[%clk
0:02:46.2]} 7. Nb5 {[%clk 0:02:01.5]} 7... Nd5 {[%clk 0:02:44.6]} 8. Bg3 {[%clk
0:01:52.4]} 8... a6 {[%clk 0:02:42.6]} 9. Nc3 {[%clk 0:01:39.7]} 9... Ndb4
{[%clk 0:02:39.1]} 10. Qd2 {[%clk 0:01:30.9]} 10... Qxd4 {[%clk 0:02:35.5]} 11.
Bxc7 {[%clk 0:01:14.3]} 11... Rc8 {[%clk 0:02:33.2]} 12. Bg3 {[%clk 0:00:55.2]}
12... Rd8 {[%clk 0:02:12.3]} 13. Bd3 {[%clk 0:00:49.1]} 13... Nxd3+ {[%clk
0:02:12.8]} 14. cxd3 {[%clk 0:00:51]} 14... Qxd3 {[%clk 0:02:13.6]} 15. Qxd3
{[%clk 0:00:51]} 15... Rxd3 {[%clk 0:02:14.4]} 16. Nge2 {[%clk 0:00:44.9]} 16...
e6 {[%clk 0:02:07.5]} 17. f3 {[%clk 0:00:43.6]} 17... Bf5 {[%clk 0:02:05.9]} 18.
O-O {[%clk 0:00:44]} 18... Bc5+ {[%clk 0:02:05.8]} 19. Kh1 {[%clk 0:00:45.3]}
19... Ke7 {[%clk 0:02:02.9]} 20. Rfd1 {[%clk 0:00:45.5]} 20... Rhd8 {[%clk
0:01:59.8]} 21. Bh4+ {[%clk 0:00:26.5]} 21... f6 {[%clk 0:02:00.3]} 22. Rxd3
{[%clk 0:00:25.4]} 22... Bxd3 {[%clk 0:01:59.3]} 23. Re1 {[%clk 0:00:16.7]}
23... Bb4 {[%clk 0:01:52.4]} 24. Kg1 {[%clk 0:00:10.9]} 24... Bxe2 {[%clk
0:01:45.3]} 25. Rxe2 {[%clk 0:00:11.8]} 25... Bxc3 {[%clk 0:01:46.5]} 26. bxc3
{[%clk 0:00:13.7]} 26... b5 {[%clk 0:01:45.2]} 27. Bg3 {[%clk 0:00:12.9]} 27...
e5 {[%clk 0:01:45.1]} 28. f4 {[%clk 0:00:14.3]} 28... Ke6 {[%clk 0:01:46.3]} 29.
fxe5 {[%clk 0:00:15.7]} 29... fxe5 {[%clk 0:01:47.8]} 30. a4 {[%clk 0:00:15.2]}
30... Rd5 {[%clk 0:01:32]} 31. axb5 {[%clk 0:00:15.9]} 31... axb5 {[%clk
0:01:31.4]} 32. Ra2 {[%clk 0:00:16.2]} 32... Rc5 {[%clk 0:01:30.2]} 33. Be1
{[%clk 0:00:16]} 33... Ne7 {[%clk 0:01:25.8]} 34. Ra6+ {[%clk 0:00:14.7]} 34...
Rc6 {[%clk 0:01:26.1]} 35. Ra7 {[%clk 0:00:15.7]} 35... g6 {[%clk 0:01:26]} 36.
Rb7 {[%clk 0:00:16.7]} 36... Rc5 {[%clk 0:01:26.8]} 37. Bh4 {[%clk 0:00:03.9]}
37... Nd5 {[%clk 0:01:27.1]} 38. Rxh7 {[%clk 0:00:03.9]} 38... Nxc3 {[%clk
0:01:27.3]} 0-1